[Event "Romanian Team Blitz Open 2022"]
[Site "Sebes"]
[Date "2022.12.04"]
[Round "8.2"]
[White "Jianu, Vlad-Cristian"]
[Black "Murariu, Andrei"]
[Result "1-0"]
[ECO "A12"]
[WhiteElo "2516"]
[BlackElo "2493"]
[Annotator "TA"]
[PlyCount "50"]
[EventDate "2022.12.04"]
[EventType "blitz"]
[EventCountry "ROU"]
[SourceTitle "playchess.com"]
[Source "ChessBase"]
[SourceQuality "1"]
[TimeControl "180+2"]

{[%evp 14,50,10,5,79,20,141,147,151,33,60,57,62,58,46,33,31,20,75,54,112,121,114,110,114,112,221,212,231,216,241,235,237,214,310,285,325,304,347]} 1. Nf3 {[%emt 0:00:01]} d5 {[%emt 0:00:02]} 2. g3 {[%emt 0:00:07]} Nf6 {[%emt 0:00:01]} 3. Bg2 {[%emt 0:00:00]} c6 {[%emt 0:00:02]} 4. b3 {[%emt 0:00:02]} Bf5 {[%emt 0:00:03]} 5. Bb2 {[%emt 0:00:00]} e6 {[%emt 0:00:02]} 6. c4 {[%emt 0:00:03]} Nbd7 {[%emt 0:00:05] 6...h6 is the hot move.} 7. O-O {[%emt 0:00:01]} Bd6 {[%emt 0:00:07]} 8. d3 {[%emt 0:00:01]} h6 {[%emt 0:00:03] A12: English Opening: 1...c6 with b3 by White.} (8... O-O $11) 9. Nbd2 {[%emt 0:00:01]} (9. cxd5 $1 $16 cxd5 10. e4) 9... Qe7 {[%emt 0:00:10]} (9... Bg6 $11 {remains equal.}) 10. cxd5 $16 {[%emt 0:00:16]} cxd5 {[%emt 0:00:07] White is clearly better.} 11. Nd4 {[%emt 0:00:05] [#]} ({Only move:} 11. e4 $1 $16 {[%cal Re4f5]} dxe4 12. dxe4) 11... O-O $146 {[%emt 0:00:35]} ({Predecessor:} 11... Bh7 12. Nb5 O-O 13. Nxd6 Qxd6 14. Nf3 e5 15. Qd2 Rfe8 16. Rac1 Qa6 17. a3 e4 18. dxe4 dxe4 {1-0 (24) Horowitz,I-Hassialis,M New York 1933}) 12. Nxf5 {[%emt 0:00:07]} exf5 {[%emt 0:00:01]} 13. Nf3 {[%emt 0:00:02]} f4 {[%emt 0:00:12]} 14. Qd2 {[%emt 0:00:21]} fxg3 {[%emt 0:00:03]} 15. hxg3 {[%emt 0:00:01]} Ng4 {[%emt 0:00:16]} (15... Bb4 $11 16. Qd1 Rac8) 16. Qc3 {[%emt 0:00:39][%csl Gb2][%cal Rc3g7]} Nde5 {[%emt 0:00:14]} (16... Ndf6 $14) 17. Nxe5 $1 {[%emt 0:00:08]} Bxe5 {[%emt 0:00:17]} 18. d4 {[%emt 0:00:06]} Bd6 {[%emt 0:00:19]} 19. Bxd5 {[%emt 0:00:18]} Qg5 {[%emt 0:00:02]} (19... Nf6 $16) 20. Qf3 $1 $18 {[%emt 0:00:26]} ({Stronger than} 20. Bxb7 {[#]} Qh5 $1 21. Kg2 Qh2+ 22. Kf3 Nxf2 $1 $17) 20... Rac8 {[%emt 0:00:25]} 21. Rac1 {[%emt 0:00:04] Prevents Rc2.} Rxc1 {[%emt 0:00:20]} 22. Bxc1 {[%emt 0:00:08] A strong pair of Bishops.} Qh5 {[%emt 0:00:05][%csl Gg4][%cal Rh5h2]} 23. Qh1 {[%emt 0:00:03] Against Qh2+} (23. Bxb7 $2 Qh2#) 23... Qf5 {[%emt 0:00:10]} (23... Qxh1+ {is a better defense.} 24. Bxh1 b6) 24. e4 {[%emt 0:00:07][%cal Be2e4,Be4e5][%mdl 32]} ({Resist} 24. Bxb7 Qa5 25. e4 Qxa2 $18) 24... Qg6 {[%emt 0:00:04]} 25. e5 {[%emt 0:00:02]} ({Don't play} 25. Bxb7 Bb4 26. e5 Bc3 $18) 25... Be7 {[%emt 0:00:07] Weighted Error Value: White=0.16 (very precise) /Black=0.49} 1-0

[Event "Romanian Team Blitz Open 2022"]
[Site "Sebes"]
[Date "2022.12.04"]
[Round "8.3"]
[White "Grecescu, Gabriel-Andrei"]
[Black "Parligras, Mircea-Emilian"]
[Result "0-1"]
[ECO "A13"]
[WhiteElo "2388"]
[BlackElo "2567"]
[Annotator "TA"]
[PlyCount "148"]
[EventDate "2022.12.04"]
[EventType "blitz"]
[EventCountry "ROU"]
[SourceTitle "playchess.com"]
[Source "ChessBase"]
[SourceQuality "1"]
[TimeControl "180+2"]

{[%evp 9,148,-27,-25,-25,-25,-41,-43,-68,-52,-59,-56,-57,-69,-77,-64,-72,-77,-95,-66,-109,-94,-123,-122,-119,-70,-111,-112,-134,-127,-122,-92,-151,-104,-138,-107,-106,-115,-107,-50,-59,59,52,92,38,41,28,34,-39,-39,-40,-40,-57,0,0,0,-9,23,-55,-55,-48,-48,-48,-37,-54,0,-84,-84,-129,-115,-154,-152,-198,-191,-247,-238,-249,-248,-247,-247,-270,-175,-164,-169,-169,-65,-55,-16,-16,-21,-96,-30,-242,-96,-138,-153,-226,-73,-261,-249,-208,8,8,8,8,8,8,16,0,0,0,0,0,0,0,0,0,0,0,0,0,63,-36,0,0,0,0,0,0,0,0,0,0,0,-28,-28,-28,-28,-28,-28,-28,0]} 1. c4 {[%emt 0:00:03]} e6 {[%emt 0:00:01]} 2. Nf3 {[%emt 0:00:01]} d5 {[%emt 0:00:01]} 3. b3 {[%emt 0:00:02]} d4 {[%emt 0:00:05]} 4. e3 {[%emt 0:00:05]} c5 {[%emt 0:00:02][%cal Bc7c5,Bc5b4][%mdl 32]} 5. b4 {[%emt 0:00:21]} dxe3 {[%emt 0:00:02]} 6. fxe3 {[%emt 0:00:01] A13: English Opening: 1...e6.} cxb4 {[%emt 0:00:02]} 7. Bb2 {[%emt 0:00:01]} Nf6 {[%emt 0:00:02] [#]} 8. Be2 $146 {[%emt 0:00:04] Black is slightly better.} ({Predecessor:} 8. d4 Nbd7 9. Be2 b6 10. Qd3 Bb7 11. Nbd2 Qc7 12. O-O Bd6 13. e4 e5 14. c5 {1-0 (32) Deshmukh,A (2201)-Ostojic,N (2338) Arandjelovac 2021}) 8... Be7 {[%emt 0:00:03]} 9. O-O {[%emt 0:00:02]} O-O {[%emt 0:00:03]} 10. a3 {[%emt 0:00:06]} bxa3 {[%emt 0:00:07]} 11. Nxa3 {[%emt 0:00:01]} b6 {[%emt 0:00:06]} 12. Nb5 {[%emt 0:00:02]} a6 $1 {[%emt 0:00:07]} 13. Be5 {[%emt 0:00:18]} Ne8 {[%emt 0:00:01] Inhibits Bc7.} 14. Nbd4 {[%emt 0:00:26]} Bb7 $1 {[%emt 0:00:14]} 15. Qb1 {[%emt 0:00:05]} Nd7 {[%emt 0:00:07]} 16. Bg3 {[%emt 0:00:02]} Nef6 {[%emt 0:00:12]} (16... Bd6 $17 {Strongly threatening ...Bxg3.} 17. Bd3 g6) 17. Bd3 {[%emt 0:00:03]} h6 {[%emt 0:00:08]} 18. Ne5 {[%emt 0:00:16]} Nxe5 {[%emt 0:00:09]} 19. Bxe5 {[%emt 0:00:01]} Rc8 {[%emt 0:00:19]} 20. Ra2 {[%emt 0:00:18]} ({White should try} 20. Be2) 20... Rc5 {[%emt 0:00:07]} (20... Ng4 $142 21. Bg3 Bd6 22. Bh7+ Kh8) 21. Bg3 {[%emt 0:00:14]} Rg5 {[%emt 0:00:29]} 22. Rb2 {[%emt 0:00:29]} Bc5 {[%emt 0:00:28]} 23. Nf3 {[%emt 0:00:01] [#]} Bxf3 {[%emt 0:00:11]} (23... Rxg3 $1 $17 {[%mdl 512]} 24. hxg3 Qd6) 24. Rxf3 $15 {[%emt 0:00:06]} Rh5 {[%emt 0:00:22]} (24... a5 $15) 25. Be2 $1 $14 {[%emt 0:00:07][%cal Of3f6] This pair of bishops is nice.} Rf5 {[%emt 0:00:15]} 26. Rxf5 {[%emt 0:00:08]} (26. d4 $1 $16 {[%cal Rd4c5]} Bd6 27. Bxd6 (27. Rxb6 Bxg3 28. hxg3 Ne4 $11) 27... Rxf3 28. Bxf3 (28. Bxf8 Rxe3 29. Bc5 Rxe2 $11) 28... Qxd6 29. Rxb6) 26... exf5 {[%emt 0:00:01]} 27. d4 {[%emt 0:00:19]} (27. Qxf5 {keeps more tension.} Re8 28. Be5 Re6 29. d4) 27... Bd6 {[%emt 0:00:06]} 28. Qxf5 {[%emt 0:00:07]} (28. Bxd6 $14 Qxd6 29. Rxb6 (29. Qxf5 Qa3 $17)) 28... Bxg3 $15 {[%emt 0:00:01]} 29. hxg3 {[%emt 0:00:00]} Re8 {[%emt 0:00:01]} 30. Rb3 {[%emt 0:00:06]} Ne4 {[%emt 0:00:02]} (30... g6 $15 31. Qf4 Kg7) 31. Bd3 {[%emt 0:00:03]} g6 {[%emt 0:00:02]} 32. Qf4 {[%emt 0:00:01]} Nf6 {[%emt 0:00:03]} 33. g4 {[%emt 0:00:03]} (33. Qxh6 $11 Ng4 34. Qf4 Nxe3 35. Bxg6 $1 {[%mdl 512]} fxg6 36. Rxe3) 33... Kg7 {[%emt 0:00:01]} 34. g5 {[%emt 0:00:01] Against a5} hxg5 {[%emt 0:00:02]} 35. Qxg5 {[%emt 0:00:01]} Qd6 {[%emt 0:00:02]} 36. Rb1 {[%emt 0:00:03]} Rh8 {[%emt 0:00:01]} (36... Qe6 $15) 37. Qe5 {[%emt 0:00:03]} (37. Qf4 $11 Qxf4 38. exf4) 37... Qxe5 $17 {[%emt 0:00:01]} 38. dxe5 {[%emt 0:00:01][%mdl 4096] Endgame KRB-KRN} Nd7 {[%emt 0:00:12]} 39. Ra1 {[%emt 0:00:02]} Nxe5 {[%emt 0:00:00]} 40. Bf1 {[%emt 0:00:00]} (40. Be2 $17) 40... a5 $19 {[%emt 0:00:00]} 41. c5 {[%emt 0:00:01]} (41. Rb1 {is a better defense.}) 41... bxc5 {[%emt 0:00:06]} 42. Rxa5 {[%emt 0:00:00] [#]} Rc8 {[%emt 0:00:00]} 43. Kf2 {[%emt 0:00:01]} Kf6 {[%emt 0:00:00]} 44. Ke1 {[%emt 0:00:02]} Rc6 {[%emt 0:00:00]} 45. Be2 {[%emt 0:00:01]} c4 {[%emt 0:00:00]} 46. Kd2 {[%emt 0:00:01]} g5 {[%emt 0:00:00]} ({Better is} 46... Rd6+ $19 47. Kc2 Kf5) 47. Kc3 $15 {[%emt 0:00:02]} Ke6 {[%emt 0:00:00]} 48. Bd1 {[%emt 0:00:14]} f6 {[%emt 0:00:03]} 49. Be2 {[%emt 0:00:02]} (49. Bc2 $11) 49... Rc7 {[%emt 0:00:03]} ({Black should play} 49... Rb6 $17 {...Rb3+ is the strong threat.} 50. Bxc4+ Nxc4 51. Kxc4 Rb2) 50. Bf1 $2 {[%emt 0:00:01] [#]} (50. Bf3 $11 {and White stays safe.}) 50... Rd7 {[%emt 0:00:02]} (50... Kf5 $1 $19 {is more deadly.} 51. Ra6 Ng4 52. e4+ Kxe4) 51. Ra6+ {[%emt 0:00:02]} Kf5 {[%emt 0:00:01] Black is more active.} 52. Be2 {[%emt 0:00:01] Prevents Rd1.} (52. g4+ $17 {was necessary.} Nxg4 53. Bxc4) 52... Rh7 $2 {[%emt 0:00:03]} (52... g4 $19 53. g3 Rd8 54. e4+ Kg5) 53. g4+ {[%emt 0:00:03]} (53. Bd1 $17 Rf7 54. Bc2+ Kg4 55. Be4) 53... Nxg4 $19 {[%emt 0:00:03]} 54. Bxc4 {[%emt 0:00:02] And now Bd3+ would win.} Rh3 $2 {[%emt 0:00:03]} (54... Nxe3 $2 55. Bd3+ Ke5 56. Bxh7 $18) (54... Ne5 $19 {Threatens to win with ...Rc7.} 55. Bd3+ Nxd3 56. Kxd3 Rd7+ 57. Ke2 Re7) 55. Be6+ $11 {[%emt 0:00:01][%mdl 64] Deflection} Ke5 {[%emt 0:00:01]} 56. Bxg4 {[%emt 0:00:01]} Rxe3+ {[%emt 0:00:01] KRB-KR} 57. Kd2 {[%emt 0:00:01]} Rg3 {[%emt 0:00:02]} 58. Be2 {[%emt 0:00:02]} f5 {[%emt 0:00:02]} 59. Ke1 {[%emt 0:00:00]} Rb3 {[%emt 0:00:02]} 60. Kf2 {[%emt 0:00:02]} g4 {[%emt 0:00:01]} 61. Ra4 {[%emt 0:00:02]} Kf6 {[%emt 0:00:03]} 62. Ra5 {[%emt 0:00:05]} Kg5 {[%emt 0:00:01]} 63. Bd1 {[%emt 0:00:02]} Rb2+ {[%emt 0:00:02]} 64. Kg3 {[%emt 0:00:02]} Rd2 {[%emt 0:00:02]} (64... Rb4 $11) 65. Ba4 {[%emt 0:00:03]} (65. Bxg4 $14 Rd3+ 66. Bf3) 65... Rd3+ {[%emt 0:00:03][%mdl 1024] Black has compensation.} (65... Ra2 $5) 66. Kg2 {[%emt 0:00:01]} Ra3 {[%emt 0:00:02]} 67. Ra6 {[%emt 0:00:02]} f4 {[%emt 0:00:04]} 68. Bb5 {[%emt 0:00:01]} Rb3 {[%emt 0:00:02] White must now prevent ...Rb2+.} 69. Bf1 {[%emt 0:00:02]} Rb2+ {[%emt 0:00:02]} 70. Kg1 {[%emt 0:00:01]} Kh4 {[%emt 0:00:01]} 71. Ra3 {[%emt 0:00:04]} f3 {[%emt 0:00:01] Black has an edge.} 72. Ra8 {[%emt 0:00:04]} Kg3 {[%emt 0:00:01]} 73. Ra7 {[%emt 0:00:06]} Rb1 {[%emt 0:00:13] ( -> ...f2+)} 74. Ra2 {[%emt 0:00:02] Against f2+} Rc1 {[%mdl 32768] Weighted Error Value: White=0.34/Black=0.29 (precise) . Loss on time!?} 0-1

[Event "Romanian Team Blitz Open 2022"]
[Site "Sebes"]
[Date "2022.12.04"]
[Round "8.4"]
[White "Gavrilescu, David"]
[Black "Cnejev, Vladimir-Alexandru"]
[Result "1-0"]
[ECO "C30"]
[WhiteElo "2523"]
[BlackElo "2293"]
[Annotator "TA"]
[PlyCount "121"]
[EventDate "2022.12.04"]
[EventType "blitz"]
[EventCountry "ROU"]
[SourceTitle "playchess.com"]
[Source "ChessBase"]
[SourceQuality "1"]
[TimeControl "180+2"]

{[%evp 18,121,16,28,25,26,28,29,25,36,24,25,52,50,50,49,60,47,62,50,117,117,91,100,270,119,231,72,69,70,66,79,91,6,118,112,108,107,162,124,125,125,146,147,143,104,104,87,141,140,136,54,48,60,91,54,246,246,294,245,406,400,369,319,320,291,280,266,808,816,569,453,29964,29969,29965,29968,29962,7200,29971,29964,29975,29976,29955,6137,29981,29982,29982,29983,29983,29984,29984,29985,29985,29986,29991,29986,29993,29993,29993,29993,29997,29998,29998,-415,29998,29999]} 1. Nc3 {[%emt 0:00:02]} Nf6 {[%emt 0:00:17]} 2. e4 {[%emt 0:00:01]} e5 {[%emt 0:00:01]} 3. Bc4 {[%emt 0:00:02]} Bc5 {[%emt 0:00:03]} 4. d3 {[%emt 0:00:01]} Nc6 {[%emt 0:00:04]} 5. f4 {[%emt 0:00:01]} d6 {[%emt 0:00:07]} 6. Nf3 {[%emt 0:00:01]} Bg4 {[%emt 0:00:06]} 7. Na4 {[%emt 0:00:02]} Bb6 {[%emt 0:00:02]} 8. Nxb6 {[%emt 0:00:01]} axb6 {[%emt 0:00:02]} 9. O-O {[%emt 0:00:02]} O-O {[%emt 0:00:07]} 10. c3 {[%emt 0:00:02]} exf4 {[%emt 0:00:14] C30: King's Gambit Declined.} 11. Bxf4 {[%emt 0:00:02]} d5 {[%emt 0:00:12]} 12. exd5 {[%emt 0:00:15]} Nxd5 {[%emt 0:00:01] White has an edge.} 13. Bxd5 {[%emt 0:00:16]} Qxd5 {[%emt 0:00:02]} 14. Bxc7 {[%emt 0:00:06] [#]} b5 $146 {[%emt 0:00:36][%cal Of8c8]} ({Predecessor:} 14... Rxa2 15. Rxa2 Qxa2 16. Qc2 Qa5 17. Qf2 Qd5 18. Qxb6 Qxd3 19. Qxb7 Qe3+ 20. Rf2 Qc1+ {1-0 (34) Ronka,E (2325)-Terletsky,O (2176) Chess.com INT 2022}) 15. a3 {[%emt 0:00:14]} Rac8 {[%emt 0:00:05]} 16. Bg3 {[%emt 0:00:02]} Rfe8 {[%emt 0:00:04]} 17. Qd2 {[%emt 0:00:03]} Rcd8 {[%emt 0:00:20]} 18. d4 {[%emt 0:00:08]} (18. Qf4 {keeps more tension.} Bf5 19. d4 Re2 20. Rf2) 18... Bxf3 {[%emt 0:00:14]} (18... Bd7 $14) 19. Rxf3 $16 {[%emt 0:00:02]} Na5 {[%emt 0:00:06]} 20. Qf2 {[%emt 0:00:08] aiming for Rf5.} (20. Qc2 {looks sharper.} Qc6 21. b3 b6 22. Rb1) 20... Rd7 $2 {[%emt 0:00:11]} (20... Qd7 $16) 21. Re1 {[%emt 0:00:06]} (21. Rf5 $18 {and White stays clearly on top.} Qc6 22. Rc5) 21... Rde7 {[%emt 0:00:14]} (21... Rxe1+ $16 22. Qxe1 h6) 22. Rfe3 $2 {[%emt 0:00:04]} (22. Rxe7 $18 {is the precise move to win.} Rxe7 23. Rf5) 22... Rxe3 {[%emt 0:00:10]} 23. Rxe3 {[%emt 0:00:01]} Rxe3 24. Qxe3 {[%emt 0:00:02][%cal Re3e8][%mdl 4096] [#] Endgame KQB-KQN} h6 {[%emt 0:00:05]} 25. Be5 {[%emt 0:00:37]} ({White should try} 25. Qe5 $16 Qxe5 26. Bxe5) 25... Nc4 {[%emt 0:00:03]} (25... Qb3 $11 {remains equal.}) 26. Qg3 {[%emt 0:00:01][%csl Ge5][%cal Rg3g7]} g6 {[%emt 0:00:20][%cal Od5e6]} 27. Qf4 {[%emt 0:00:11]} h5 {[%emt 0:00:05]} (27... Qe6 $16 {keeps fighting.}) 28. Qf6 {[%emt 0:00:08][%csl Ge5][%cal Rf6g7] [#]} Nxe5 {[%emt 0:00:04]} 29. Qxe5 {[%emt 0:00:01] KQ-KQ} (29. dxe5 Qd1+ 30. Qf1 Qd2 $14) 29... Qc4 {[%emt 0:00:01]} 30. Kf2 {[%emt 0:00:02] White is more active.} Qd3 {[%emt 0:00:01]} 31. Qe2 {[%emt 0:00:02] Inhibits Qc2.} Qf5+ {[%emt 0:00:01]} 32. Ke3 {[%emt 0:00:07]} Qg5+ {[%emt 0:00:03]} 33. Kd3 {[%emt 0:00:01] Threatens to win with Qe8+.} Qf5+ {[%emt 0:00:02]} 34. Kd2 {[%emt 0:00:01]} (34. Qe4 $16 {Qxf5 is the strong threat.} Qf2 35. Qe2 (35. Qxb7 Qxb2 36. Qb8+ Kh7 $11) 35... Qf5+ 36. Qe4) 34... Qf4+ $14 {[%emt 0:00:01]} 35. Kc2 {[%emt 0:00:02]} Qxh2 {[%emt 0:00:01] White now steadily converts the win.} 36. d5 {[%emt 0:00:04][%cal Oc2b3,Bd4d5,Bd5d6][%mdl 32]} (36. Qxb5 Qxg2+ 37. Kb3 Qf3 38. Qe8+ Kg7 $15) 36... Qd6 $2 {[%emt 0:00:05]} ({Black should play} 36... h4 $14) 37. Qxb5 $18 {[%emt 0:00:02]} Qe7 {[%emt 0:00:02]} 38. Qd3 {[%emt 0:00:03] Black must now prevent d6.} Kg7 $2 {[%emt 0:00:02]} (38... Qd6 39. b4 Kf8) 39. d6 {[%emt 0:00:00]} Qd7 {[%emt 0:00:01]} 40. Qd4+ {[%emt 0:00:01]} f6 {[%emt 0:00:00]} 41. c4 {[%emt 0:00:01][%cal Bc3c4,Bc4c5][%mdl 32] Prevents h4.} g5 {[%emt 0:00:03]} 42. c5 {[%emt 0:00:02]} Qf5+ $2 {[%emt 0:00:01]} (42... h4 43. Qd5 g4) 43. Kc3 {[%emt 0:00:01] Strongly threatening d7.} Qd7 {[%emt 0:00:02]} 44. Qe4 {[%emt 0:00:02]} Kf7 {[%emt 0:00:02]} (44... h4 $18 45. Kd4 g4) 45. Qh7+ {[%emt 0:00:01]} Ke6 {[%emt 0:00:02]} 46. Qxd7+ {[%emt 0:00:06]} Kxd7 {[%emt 0:00:01] KP-KP} 47. Kd4 {[%emt 0:00:01]} (47. Kd3 $142 b6 48. cxb6 Kxd6 49. a4 h4 50. a5 Kc6 51. b4 g4 52. b5+ Kd7 53. a6) 47... Ke6 {[%emt 0:00:06]} 48. b4 {[%emt 0:00:01][%cal Bb2b4,Bb4b5][%mdl 32]} f5 {[%emt 0:00:02]} 49. b5 {[%emt 0:00:06]} h4 {[%emt 0:00:01]} 50. Ke3 {[%emt 0:00:01]} b6 {[%emt 0:00:03]} 51. cxb6 {[%emt 0:00:13]} Kxd6 {[%emt 0:00:01]} 52. a4 {[%emt 0:00:01][%cal Ba3a4,Ba4a5,Ba5a6][%mdl 32]} Kd7 {[%emt 0:00:00]} 53. a5 {[%emt 0:00:00]} Kc8 {[%emt 0:00:02]} 54. a6 {[%emt 0:00:01]} g4 {[%emt 0:00:02]} 55. Kf4 {[%emt 0:00:14]} Kb8 {[%emt 0:00:01]} 56. b7 {[%emt 0:00:10]} (56. Kxf5 h3 57. g3 h2 58. Kxg4 h1=Q 59. Kg5 Qc1+ 60. Kg4 Qc4+ 61. Kf5 Qxb5+ 62. Kf4 Qxb6 63. Kf5 Qf2+ 64. Kg6 Qxg3+ 65. Kf6 Ka7 66. Kf5 Kxa6 67. Ke4 Kb5 68. Kf5 Kc5 69. Ke4 Qg4+ 70. Ke5 Kc6 71. Kf6 Kd6 72. Kf7 Qg5 73. Kf8 Ke6 74. Ke8 Qg8#) 56... Ka7 {[%emt 0:00:04]} 57. Ke5 {[%emt 0:00:26]} (57. Kxf5 h3 58. g3 h2 59. Kg5 h1=Q 60. b6+ Kb8 61. Kxg4 Qg1 62. a7+ Kxb7 63. Kf4 Qxb6 64. a8=R Kxa8 65. g4 Qf6+ 66. Ke3 Kb7 67. Kd3 Kc6 68. Ke3 Kc5 69. Ke4 Qg5 70. Kd3 Qxg4 71. Kd2 Qf3 72. Ke1 Kc4 73. Kd2 Qf2+ 74. Kd1 Kc3 75. Kc1 Qg1#) 57... h3 {[%emt 0:00:05]} 58. Kd6 {[%emt 0:00:00]} (58. Kxf5 hxg2 59. Kxg4 g1=Q+ 60. Kf4 Qf1+ 61. Kg3 Qxb5 62. Kf3 Kxa6 63. b8=B Qxb8 64. Kg4 Qb3 65. Kg5 Qf3 66. Kh6 Kb7 67. Kh7 Kc6 68. Kh6 Kd5 69. Kg5 Ke6 70. Kg6 Qg4+ 71. Kh6 Kf7 72. Kh7 Qh5#) 58... Kb8 {[%emt 0:00:05]} 59. Kc6 {[%emt 0:00:02]} hxg2 {[%emt 0:00:00]} 60. a7+ {[%emt 0:00:00]} Kxa7 {[%emt 0:00:00]} 61. Kc7 {[%emt 0:00:01] Weighted Error Value: White=0.29 (precise) /Black=0.55} 1-0

[Event "Romanian Team Blitz Open 2022"]
[Site "Sebes"]
[Date "2022.12.04"]
[Round "8.5"]
[White "Soltanici, Ruslan"]
[Black "Costachi, Mihnea"]
[Result "1/2-1/2"]
[ECO "C79"]
[WhiteElo "2357"]
[BlackElo "2476"]
[Annotator "TA"]
[PlyCount "54"]
[EventDate "2022.12.04"]
[EventType "blitz"]
[EventCountry "ROU"]
[SourceTitle "playchess.com"]
[Source "ChessBase"]
[SourceQuality "1"]
[TimeControl "180+2"]

{[%evp 15,54,39,38,37,34,-7,12,0,2,0,7,-14,-8,-14,-16,-8,-14,-41,-39,-53,0,8,9,13,0,0,17,-4,3,0,14,13,33,0,35,31,44,37,30,-10,4]} 1. e4 {[%emt 0:00:01]} e5 {[%emt 0:00:00]} 2. Nf3 {[%emt 0:00:01]} Nc6 {[%emt 0:00:02]} 3. Bb5 {[%emt 0:00:01]} a6 {[%emt 0:00:01]} 4. Ba4 {[%emt 0:00:01]} d6 {[%emt 0:00:01]} 5. O-O {[%emt 0:00:12]} Bd7 {[%emt 0:00:02]} 6. c3 {[%emt 0:00:13]} g6 {[%emt 0:00:02]} 7. d4 {[%emt 0:00:06]} Bg7 {[%emt 0:00:01]} 8. Re1 {[%emt 0:00:01]} Nf6 $1 {[%emt 0:00:01][%mdl 4] is recently more successful than 8...Nge7.} 9. Nbd2 {[%emt 0:00:18][%cal Bb1d2,Bd2f1,Bf1g3][%mdl 32] C79: Ruy Lopez: Steinitz-type lines with 3...a6 4 Ba4 Nf6 5 0-0 d6.} O-O {[%emt 0:00:04]} 10. Nf1 {[%emt 0:00:08]} b5 {[%emt 0:00:08]} 11. Bb3 {[%emt 0:00:04]} exd4 {[%emt 0:00:19] [#]} 12. Nxd4 $146 {[%emt 0:00:03]} ({Predecessor:} 12. cxd4 Bg4 13. Be3 Na5 14. h3 Bxf3 15. Qxf3 Nd7 16. Rad1 Qe7 17. Bd5 c6 18. Bd2 cxd5 19. Bxa5 dxe4 20. Rxe4 {½-½ (67) Vachier Lagrave,M (2784)-Nakamura,H (2736) chess24.com INT 2020}) 12... Re8 {[%emt 0:00:14]} 13. Ng3 {[%emt 0:00:02]} Na5 {[%emt 0:00:03]} 14. Bc2 {[%emt 0:00:01]} c5 {[%emt 0:00:04]} 15. Nf3 {[%emt 0:00:05]} Bc6 {[%emt 0:00:04]} 16. Bf4 {[%emt 0:00:27]} Nc4 {[%emt 0:00:18]} 17. Qc1 {[%emt 0:00:01]} Qd7 {[%emt 0:00:09]} (17... d5 $1 $15 18. Bg5 Qc7 19. Bxf6 Bxf6) 18. b3 $11 {[%emt 0:00:08]} Ne5 {[%emt 0:00:06]} 19. Nxe5 {[%emt 0:00:23]} dxe5 {[%emt 0:00:01]} 20. Be3 {[%emt 0:00:01]} Bf8 {[%emt 0:00:10]} 21. h3 {[%emt 0:01:27]} Qb7 {[%emt 0:00:07]} 22. Bg5 {[%emt 0:00:00]} Nd7 {[%emt 0:00:08]} 23. Nf1 {[%emt 0:00:00]} f6 {[%emt 0:00:07]} 24. Bh6 {[%emt 0:00:00]} Nb6 {[%emt 0:00:03]} 25. Bxf8 {[%emt 0:00:00]} Rxf8 {[%emt 0:00:00]} 26. Qe3 {[%emt 0:00:00]} c4 {[%emt 0:00:05]} 27. b4 {[%emt 0:00:00]} Rad8 {[%emt 0:00:17] Weighted Error Value: White=0.12 (very precise) /Black=0.10 (very precise)} 1/2-1/2